[Event "SVK Extraliga 2019-20"]
[Site "Slovakia"]
[Date "2020.09.05"]
[Round "10.5"]
[White "Hausner, Ivan"]
[Black "Jablonicky, Martin"]
[Result "1-0"]
[ECO "E81"]
[WhiteElo "2337"]
[BlackElo "2318"]
[Annotator "ChessBase"]
[PlyCount "125"]
[EventDate "2019.10.19"]
[EventType "team-tourn"]
[EventCountry "SVK"]
[SourceTitle "playchess.com"]
[Source "ChessBase"]
[SourceQuality "1"]
[WhiteTeam "Liptovska"]
[BlackTeam "Osuske"]
[TimeControl "40/5400+30:1800+30"]

1. d4 {[%emt 0:00:00]} Nf6 {[%emt 0:00:00]} 2. c4 {[%emt 0:00:00]} g6 {[%emt 0:00:00]} 3. Nc3 {[%emt 0:00:00]} Bg7 {[%emt 0:00:00]} 4. e4 {[%emt 0:00:11]} d6 {[%emt 0:00:00]} 5. f3 {[%emt 0:00:21]} O-O {[%emt 0:00:02]} 6. Be3 {[%emt 0:00:04]} a6 {[%emt 0:00:12]} 7. Qd2 {[%emt 0:00:26]} c6 {[%emt 0:00:11]} 8. Bd3 {[%emt 0:00:54]} b5 {[%emt 0:00:57]} 9. b3 {[%emt 0:00:19]} Nbd7 {[%emt 0:01:15]} 10. Nge2 {[%emt 0:00:42]} e5 {[%emt 0:01:11]} 11. d5 {[%emt 0:00:14]} cxd5 {[%emt 0:01:50]} 12. cxd5 {[%emt 0:00:07]} Nh5 {[%emt 0:00:31]} 13. O-O {[%emt 0:04:24]} f5 {[%emt 0:07:03]} 14. Rac1 {[%emt 0:03:45]} Ndf6 {[%emt 0:02:52]} 15. a4 {[%emt 0:08:26]} b4 {[%emt 0:06:05]} 16. Nd1 {[%emt 0:03:40]} fxe4 {[%emt 0:03:25]} 17. fxe4 {[%emt 0:03:02]} Ng4 {[%emt 0:01:20]} 18. Nf2 {[%emt 0:00:24]} Nxe3 {[%emt 0:01:00]} 19. Qxe3 {[%emt 0:00:05]} Nf4 {[%emt 0:01:28]} 20. Rc6 {[%emt 0:11:41]} Bh6 {[%emt 0:02:10]} 21. Nxf4 {[%emt 0:02:00]} Bxf4 {[%emt 0:00:13]} 22. Qe1 {[%emt 0:00:14]} Bb7 {[%emt 0:09:29]} 23. Rc2 {[%emt 0:03:42]} Qb6 {[%emt 0:00:25]} 24. g3 {[%emt 0:00:15]} Be3 {[%emt 0:01:13]} 25. Kg2 {[%emt 0:00:19]} Qd4 {[%emt 0:05:29]} 26. Bc4 {[%emt 0:10:30]} a5 {[%emt 0:23:21]} 27. Re2 {[%emt 0:02:37]} Bh6 {[%emt 0:08:04]} 28. Qd1 {[%emt 0:10:52]} Qxd1 {[%emt 0:04:40]} 29. Nxd1 {[%emt 0:04:04]} Rxf1 {[%emt 0:03:11]} 30. Kxf1 {[%emt 0:00:05]} Bc8 {[%emt 0:00:29]} 31. Nf2 {[%emt 0:00:42]} Bd7 {[%emt 0:00:32]} 32. Kg2 {[%emt 0:01:01]} Rc8 {[%emt 0:01:32]} 33. Rc2 {[%emt 0:07:44]} Be3 {[%emt 0:00:38]} 34. Bd3 {[%emt 0:03:05]} Rc3 {[%emt 0:04:17]} 35. Rxc3 {[%emt 0:00:43]} bxc3 {[%emt 0:00:09]} 36. Kf3 {[%emt 0:00:55]} Bd4 {[%emt 0:00:35]} 37. Ng4 {[%emt 0:02:13]} Kf7 {[%emt 0:03:20]} 38. Ne3 {[%emt 0:00:18]} h5 {[%emt 0:00:07]} 39. Bc2 {[%emt 0:01:19]} Bc5 {[%emt 0:05:02]} 40. Nc4 {[%emt 0:03:41]} Bg4+ {[%emt 0:01:00]} 41. Kg2 {[%emt 0:30:06]} Bb4 {[%emt 0:30:28]} 42. Ne3 {[%emt 0:02:47]} Bc8 {[%emt 0:00:00]} 43. Nc4 {[%emt 0:00:00]} Ke7 {[%emt 0:00:00]} 44. Kf2 {[%emt 0:00:00]} Bh3 {[%emt 0:00:00]} 45. Ke2 {[%emt 0:00:00]} Kd7 {[%emt 0:00:00]} 46. Ne3 {[%emt 0:00:00]} Kc7 {[%emt 0:00:00]} 47. Nc4 {[%emt 0:00:00]} Bc5 {[%emt 0:00:00]} 48. Nxa5 {[%emt 0:00:00]} Bg1 {[%emt 0:00:00]} 49. b4 {[%emt 0:00:00]} Bxh2 {[%emt 0:00:00]} 50. Kf2 {[%emt 0:00:00]} g5 {[%emt 0:00:00]} 51. Nc4 {[%emt 0:00:00]} h4 {[%emt 0:00:00]} 52. gxh4 {[%emt 0:00:00]} gxh4 {[%emt 0:00:00]} 53. b5 {[%emt 0:00:00]} Bg3+ {[%emt 0:00:00]} 54. Kf3 {[%emt 0:00:00]} Bf4 {[%emt 0:00:00]} 55. b6+ {[%emt 0:00:00]} Kb7 {[%emt 0:00:00]} 56. a5 {[%emt 0:00:00]} Bf1 {[%emt 0:00:00]} 57. Nxd6+ {[%emt 0:00:00]} Kb8 {[%emt 0:00:00]} 58. Kf2 {[%emt 0:00:00]} Ba6 {[%emt 0:00:00]} 59. Kg2 {[%emt 0:00:00]} Bc8 {[%emt 0:03:31]} 60. Nf5 {[%emt 0:04:09]} Kb7 {[%emt 0:01:06]} 61. Nxh4 {[%emt 0:01:49]} Ka6 {[%emt 0:01:19]} 62. Nf5 {[%emt 0:00:37]} Bg5 {[%emt 0:02:32]} 63. Nd6 {[%emt 0:00:27]} 1-0

[Event "SVK Extraliga 2019-20"]
[Site "Slovakia"]
[Date "2020.09.05"]
[Round "10.5"]
[White "Jacko, Vladimir"]
[Black "Vojtek, Vladimir"]
[Result "1-0"]
[ECO "B90"]
[WhiteElo "2333"]
[BlackElo "2247"]
[Annotator "ChessBase"]
[PlyCount "87"]
[EventDate "2019.10.19"]
[EventType "team-tourn"]
[EventCountry "SVK"]
[SourceTitle "playchess.com"]
[Source "ChessBase"]
[SourceQuality "1"]
[WhiteTeam "Prakovce"]
[BlackTeam "Dubnica"]
[TimeControl "40/5400+30:1800+30"]

1. e4 {[%emt 0:00:00]} c5 {[%emt 0:00:03]} 2. Nf3 {[%emt 0:00:00]} d6 {[%emt 0:00:07]} 3. d4 {[%emt 0:00:16]} cxd4 {[%emt 0:00:04]} 4. Nxd4 {[%emt 0:00:05]} Nf6 {[%emt 0:00:05]} 5. Nc3 {[%emt 0:00:21]} a6 {[%emt 0:00:05]} 6. Bc4 {[%emt 0:08:22]} e6 {[%emt 0:00:06]} 7. f4 {[%emt 0:00:22]} b5 {[%emt 0:02:10]} 8. Bb3 {[%emt 0:00:32]} Bb7 {[%emt 0:02:05]} 9. O-O {[%emt 0:06:20]} Be7 {[%emt 0:10:45]} 10. Kh1 {[%emt 0:12:19]} Nc6 {[%emt 0:08:38]} 11. f5 {[%emt 0:07:46]} Nxd4 {[%emt 0:01:52]} 12. Qxd4 {[%emt 0:00:08]} e5 {[%emt 0:01:53]} 13. Qd3 {[%emt 0:00:37]} h6 {[%emt 0:30:02]} 14. a3 {[%emt 0:11:43]} Rc8 {[%emt 0:01:12]} 15. Re1 {[%emt 0:06:25]} Rc7 {[%emt 0:04:02]} 16. Bd2 {[%emt 0:05:03]} Qa8 {[%emt 0:02:52]} 17. Re2 {[%emt 0:13:50]} Rd7 {[%emt 0:01:32]} 18. Qg3 {[%emt 0:04:40]} Kf8 {[%emt 0:09:01]} 19. Rae1 {[%emt 0:03:20]} Bd8 {[%emt 0:00:26]} 20. Qd3 {[%emt 0:03:10]} Bb6 {[%emt 0:03:08]} 21. a4 {[%emt 0:03:27]} b4 {[%emt 0:02:14]} 22. Nd5 {[%emt 0:00:06]} Bxd5 {[%emt 0:07:37]} 23. Bxd5 {[%emt 0:00:12]} Nxd5 {[%emt 0:00:26]} 24. exd5 {[%emt 0:00:02]} Bc5 {[%emt 0:01:31]} 25. f6 {[%emt 0:00:24]} gxf6 {[%emt 0:02:44]} 26. Qf5 {[%emt 0:02:04]} Ke7 {[%emt 0:02:52]} 27. Rf1 {[%emt 0:01:27]} Kd8 {[%emt 0:00:20]} 28. c3 {[%emt 0:02:06]} a5 {[%emt 0:01:40]} 29. Qxf6+ {[%emt 0:02:11]} Kc7 {[%emt 0:00:00]} 30. Rc1 {[%emt 0:03:23]} b3 {[%emt 0:00:57]} 31. c4 {[%emt 0:01:48]} Bd4 {[%emt 0:01:09]} 32. Bc3 {[%emt 0:01:11]} Bxc3 {[%emt 0:01:28]} 33. Rxc3 {[%emt 0:00:01]} Rb8 {[%emt 0:00:20]} 34. Qf3 {[%emt 0:01:21]} Rb4 {[%emt 0:00:52]} 35. c5 {[%emt 0:00:58]} dxc5 {[%emt 0:00:37]} 36. Rxe5 {[%emt 0:00:35]} Kb6 {[%emt 0:01:28]} 37. Qf6+ {[%emt 0:00:27]} Ka7 {[%emt 0:00:12]} 38. Rxc5 {[%emt 0:00:22]} Rxa4 39. h3 {[%emt 0:00:35]} Qb8 {[%emt 0:01:02]} 40. Rc6 {[%emt 0:01:23]} Ra1+ {[%emt 0:01:16]} 41. Kh2 {[%emt 0:30:33]} Qb5 {[%emt 0:09:42]} 42. Re7 {[%emt 0:00:00]} Qb8+ {[%emt 0:05:14]} 43. d6 {[%emt 0:00:00]} Rb7 {[%emt 0:01:51]} 44. Qd4+ {[%emt 0:00:00]} 1-0

[Event "SVK Extraliga 2019-20"]
[Site "Slovakia"]
[Date "2020.09.05"]
[Round "10.5"]
[White "Fiacan, Robert"]
[Black "Walterova, Ema"]
[Result "0-1"]
[ECO "C55"]
[WhiteElo "2231"]
[BlackElo "1802"]
[Annotator "ChessBase"]
[PlyCount "50"]
[EventDate "2019.10.19"]
[EventType "team-tourn"]
[EventCountry "SVK"]
[SourceTitle "playchess.com"]
[Source "ChessBase"]
[SourceQuality "1"]
[WhiteTeam "Snina"]
[TimeControl "40/5400+30:1800+30"]

1. e4 {[%emt 0:00:00]} e5 {[%emt 0:00:00]} 2. Nf3 {[%emt 0:00:00]} Nc6 {[%emt 0:00:00]} 3. d4 {[%emt 0:00:56]} exd4 {[%emt 0:00:12]} 4. Bc4 {[%emt 0:00:50]} Nf6 {[%emt 0:00:43]} 5. e5 {[%emt 0:00:07]} d5 {[%emt 0:08:45]} 6. Bb5 {[%emt 0:00:39]} Nd7 {[%emt 0:03:42]} 7. O-O {[%emt 0:05:45]} Be7 {[%emt 0:02:43]} 8. Re1 {[%emt 0:12:48]} O-O {[%emt 0:13:01]} 9. Bxc6 {[%emt 0:04:13]} bxc6 {[%emt 0:00:14]} 10. Nxd4 {[%emt 0:00:13]} Nb8 {[%emt 0:15:24]} 11. Qh5 {[%emt 0:06:54]} c5 {[%emt 0:09:40]} 12. Nf3 {[%emt 0:08:14]} f6 {[%emt 0:05:56]} 13. e6 {[%emt 0:08:22]} Nc6 {[%emt 0:02:39]} 14. Nc3 {[%emt 0:09:36]} Nb4 {[%emt 0:09:06]} 15. Re2 {[%emt 0:01:14]} Ba6 {[%emt 0:04:42]} 16. Rd2 {[%emt 0:00:33]} d4 {[%emt 0:02:53]} 17. Ne4 {[%emt 0:09:51]} Nd5 {[%emt 0:02:45]} 18. c3 {[%emt 0:06:32]} d3 {[%emt 0:02:16]} 19. b3 {[%emt 0:01:12]} Bd6 {[%emt 0:05:22]} 20. g3 {[%emt 0:01:00]} Ne7 {[%emt 0:02:43]} 21. c4 {[%emt 0:01:11]} Bb7 {[%emt 0:01:41]} 22. Nxd6 {[%emt 0:07:46]} Qxd6 {[%emt 0:00:13]} 23. Ne1 {[%emt 0:00:53]} Qxe6 {[%emt 0:02:46]} 24. Ba3 {[%emt 0:00:14]} Qe4 {[%emt 0:00:52]} 25. f3 {[%emt 0:00:29]} Qd4+ {[%emt 0:00:13]} 0-1

[Event "SVK Extraliga 2019-20"]
[Site "Slovakia"]
[Date "2020.09.05"]
[Round "10.5"]
[White "Kantorik, Marian"]
[Black "Vass, Frantisek"]
[Result "1/2-1/2"]
[ECO "D35"]
[WhiteElo "2211"]
[BlackElo "2310"]
[Annotator "ChessBase"]
[PlyCount "54"]
[EventDate "2019.10.19"]
[EventType "team-tourn"]
[EventCountry "SVK"]
[SourceTitle "playchess.com"]
[Source "ChessBase"]
[SourceQuality "1"]
[WhiteTeam "Dunajov"]
[BlackTeam "Podhajska"]
[TimeControl "40/5400+30:1800+30"]

1. d4 {[%emt 0:00:00]} d5 {[%emt 0:00:50]} 2. c4 {[%emt 0:00:00]} e6 {[%emt 0:01:51]} 3. Nc3 {[%emt 0:00:00]} Nf6 {[%emt 0:00:25]} 4. cxd5 {[%emt 0:00:07]} exd5 {[%emt 0:00:05]} 5. Bg5 {[%emt 0:00:10]} Be7 {[%emt 0:00:39]} 6. e3 {[%emt 0:00:10]} O-O {[%emt 0:00:44]} 7. Bd3 {[%emt 0:00:16]} c6 {[%emt 0:00:41]} 8. Nge2 {[%emt 0:00:12]} Nbd7 {[%emt 0:00:30]} 9. Qc2 {[%emt 0:00:11]} Re8 {[%emt 0:00:53]} 10. O-O {[%emt 0:00:28]} Nf8 {[%emt 0:07:07]} 11. Bxf6 {[%emt 0:03:33]} Bxf6 {[%emt 0:00:16]} 12. b4 {[%emt 0:00:06]} Qd6 {[%emt 0:05:30]} 13. b5 {[%emt 0:00:56]} Bd7 {[%emt 0:18:25]} 14. a4 {[%emt 0:03:49]} Rac8 {[%emt 0:05:29]} 15. bxc6 {[%emt 0:02:07]} bxc6 {[%emt 0:02:47]} 16. Rac1 {[%emt 0:19:09]} h6 {[%emt 0:10:15]} 17. e4 {[%emt 0:07:38]} dxe4 {[%emt 0:11:57]} 18. Nxe4 {[%emt 0:00:11]} Qe7 {[%emt 0:00:52]} 19. Qc5 {[%emt 0:05:52]} Bg5 {[%emt 0:08:30]} 20. Rb1 {[%emt 0:08:04]} Ne6 {[%emt 0:02:55]} 21. Qxe7 {[%emt 0:01:20]} Bxe7 {[%emt 0:00:31]} 22. Rb7 {[%emt 0:01:15]} Rc7 {[%emt 0:00:16]} 23. Rxc7 {[%emt 0:01:34]} Nxc7 {[%emt 0:00:03]} 24. Rb1 {[%emt 0:00:07]} Bc8 {[%emt 0:02:00]} 25. Rc1 {[%emt 0:03:05]} Bd7 {[%emt 0:01:26]} 26. Rb1 {[%emt 0:03:03]} Bc8 {[%emt 0:00:47]} 27. Rc1 {[%emt 0:02:43]} Bd7 {[%emt 0:00:36]} 1/2-1/2

[Event "SVK Extraliga 2019-20"]
[Site "Slovakia"]
[Date "2020.09.05"]
[Round "10.6"]
[White "Czebe, Attila"]
[Black "Druska, Juraj"]
[Result "1/2-1/2"]
[ECO "B36"]
[WhiteElo "2379"]
[BlackElo "2500"]
[Annotator "RC"]
[PlyCount "129"]
[EventDate "2019.10.19"]
[EventType "team-tourn"]
[EventCountry "SVK"]
[SourceTitle "playchess.com"]
[Source "ChessBase"]
[SourceQuality "1"]
[WhiteTeam "Streda"]
[BlackTeam "Prakovce"]
[TimeControl "40/5400+30:1800+30"]

1. e4 {[%emt 0:00:00]} c5 {[%emt 0:03:19]} 2. Nf3 {[%emt 0:03:09]} Nc6 {[%emt 0:00:08]} 3. d4 {[%emt 0:01:06]} cxd4 {[%emt 0:00:15]} 4. Nxd4 {[%emt 0:00:05]} g6 {[%emt 0:00:17]} 5. c4 {[%emt 0:00:18]} Nf6 {[%emt 0:00:06]} 6. Nc3 {[%emt 0:00:07]} d6 {[%emt 0:00:05]} 7. Be2 {[%emt 0:00:34]} Nxd4 {[%emt 0:00:10]} 8. Qxd4 {[%emt 0:00:05]} Bg7 {[%emt 0:00:06]} 9. Bg5 {[%emt 0:03:36]} O-O {[%emt 0:00:17]} 10. Qd2 {[%emt 0:00:09]} Be6 {[%emt 0:19:58]} 11. Rc1 {[%emt 0:02:30]} a6 {[%emt 0:22:01]} 12. O-O {[%emt 0:07:34]} Qa5 {[%emt 0:07:13]} 13. Rfd1 {[%emt 0:12:15]} Rfc8 {[%emt 0:03:33]} 14. Bxf6 {[%emt 0:01:53]} Bxf6 {[%emt 0:18:50]} 15. Nd5 {[%emt 0:00:18]} Qxd2 {[%emt 0:04:48]} 16. Nxf6+ {[%emt 0:00:19]} exf6 {[%emt 0:00:01]} 17. Rxd2 {[%emt 0:00:08]} Rc6 {[%emt 0:00:22]} 18. b3 {[%emt 0:03:26]} Kf8 {[%emt 0:00:43]} 19. Rcd1 {[%emt 0:00:46]} Ke7 {[%emt 0:00:25]} 20. f4 {[%emt 0:00:08]} Rac8 {[%emt 0:11:13]} 21. Bf3 {[%emt 0:01:46]} Rb6 {[%emt 0:00:10]} 22. Rd3 {[%emt 0:03:21]} h5 {[%emt 0:01:08]} 23. R1d2 {[%emt 0:03:42]} Rc5 {[%emt 0:00:56]} 24. Kf2 {[%emt 0:04:16]} Ra5 {[%emt 0:00:34]} 25. Ke3 {[%emt 0:03:09]} Rc5 {[%emt 0:00:33]} 26. g3 {[%emt 0:01:30]} Bg4 {[%emt 0:01:08]} 27. Bg2 {[%emt 0:04:15]} Be6 {[%emt 0:00:01]} 28. h4 {[%emt 0:02:25]} Bg4 {[%emt 0:02:10]} 29. Kd4 {[%emt 0:00:38]} Be6 {[%emt 0:00:44]} 30. Re3 {[%emt 0:02:15]} a5 {[%emt 0:01:12]} 31. Bf1 {[%emt 0:06:18]} Rbc6 {[%emt 0:01:17]} 32. a3 {[%emt 0:04:22]} Rc8 {[%emt 0:00:20]} 33. Rb2 {[%emt 0:00:55]} R5c7 {[%emt 0:00:20]} 34. a4 {[%emt 0:00:47]} Rc6 {[%emt 0:00:42]} 35. Rd2 {[%emt 0:11:19]} Rb6 {[%emt 0:00:05]} 36. Kc3 {[%emt 0:00:17]} Rc5 {[%emt 0:00:20]} 37. Be2 {[%emt 0:02:14]} Rb4 {[%emt 0:00:26]} 38. f5 {[%emt 0:00:45]} gxf5 {[%emt 0:02:03]} 39. exf5 {[%emt 0:00:06]} Rxf5 {[%emt 0:00:01]} 40. Rd5 {[%emt 0:00:16]} Kf8 {[%emt 0:01:27]} 41. Rxf5 {[%emt 0:31:33]} Bxf5 {[%emt 0:30:02]} 42. Bxh5 {[%emt 0:00:18]} Be6 {[%emt 0:00:00]} 43. Bf3 {[%emt 0:00:00]} Rb6 {[%emt 0:00:00]} 44. Rd3 {[%emt 0:00:00]} f5 {[%emt 0:00:00]} 45. Rd4 {[%emt 0:00:00]} Ke7 {[%emt 0:00:00]} 46. h5 {[%emt 0:00:00]} Kf6 {[%emt 0:00:00]} 47. g4 {[%emt 0:00:00]} fxg4 {[%emt 0:00:00]} 48. Bxg4 {[%emt 0:00:00]} Bxg4 {[%emt 0:00:00]} 49. Rxg4 {[%emt 0:00:00]} Rc6 {[%emt 0:00:00]} 50. h6 {[%emt 0:00:00]} Rc8 {[%emt 0:00:00]} 51. Rd4 {[%emt 0:00:00]} Rd8 {[%emt 0:02:29]} 52. c5 {[%emt 0:02:48]} d5 {[%emt 0:00:15]} 53. b4 {[%emt 0:00:50]} Ke5 {[%emt 0:01:10]} 54. h7 {[%emt 0:03:22]} Rh8 {[%emt 0:01:01]} 55. Rh4 {[%emt 0:00:04]} d4+ {[%emt 0:01:41]} 56. Kc4 axb4 57. Kxb4 {[%emt 0:00:40]} f5 {[%emt 0:00:17]} 58. Kc4 {[%emt 0:00:10]} f4 {[%emt 0:00:24]} 59. Kd3 {[%emt 0:00:16]} f3 {[%emt 0:00:06]} 60. a5 {[%emt 0:00:43]} Kf5 {[%emt 0:00:28]} 61. c6 {[%emt 0:03:59]} bxc6 {[%emt 0:00:05]} 62. a6 {[%emt 0:00:02]} Kg5 {[%emt 0:00:56]} 63. Rh1 {[%emt 0:00:15]} Kf4 {[%emt 0:02:07]} 64. a7 {[%emt 0:00:24]} f2 {[%emt 0:00:25]} 65. Kxd4 {[%emt 0:06:27]} 1/2-1/2

[Event "SVK Extraliga 2019-20"]
[Site "Slovakia"]
[Date "2020.09.05"]
[Round "10.6"]
[White "Zpevak, Pavel"]
[Black "Zambor, Norbert"]
[Result "1/2-1/2"]
[ECO "A05"]
[WhiteElo "2344"]
[BlackElo "2262"]
[Annotator "ChessBase"]
[PlyCount "42"]
[EventDate "2019.10.19"]
[EventType "team-tourn"]
[EventCountry "SVK"]
[SourceTitle "playchess.com"]
[Source "ChessBase"]
[SourceQuality "1"]
[WhiteTeam "Dubnica"]
[BlackTeam "Prakovce"]
[TimeControl "40/5400+30:1800+30"]

1. Nf3 {[%emt 0:00:00]} Nf6 {[%emt 0:00:00]} 2. d4 {[%emt 0:00:31]} e6 {[%emt 0:00:57]} 3. c4 {[%emt 0:00:23]} c5 {[%emt 0:00:42]} 4. e3 {[%emt 0:00:30]} cxd4 {[%emt 0:01:13]} 5. exd4 {[%emt 0:01:47]} d5 {[%emt 0:00:06]} 6. Nc3 {[%emt 0:00:43]} Be7 {[%emt 0:03:27]} 7. a3 {[%emt 0:02:51]} O-O {[%emt 0:00:35]} 8. Bd3 {[%emt 0:04:30]} dxc4 {[%emt 0:01:45]} 9. Bxc4 {[%emt 0:00:09]} a6 {[%emt 0:02:51]} 10. O-O {[%emt 0:07:02]} b5 {[%emt 0:03:04]} 11. Ba2 {[%emt 0:01:12]} Bb7 {[%emt 0:01:07]} 12. Qe2 {[%emt 0:01:05]} Nbd7 {[%emt 0:02:47]} 13. Bg5 {[%emt 0:16:27]} Nb6 {[%emt 0:01:14]} 14. Rad1 {[%emt 0:12:39]} Nbd5 {[%emt 0:17:55]} 15. Nxd5 {[%emt 0:04:32]} Bxd5 {[%emt 0:02:42]} 16. Bb1 {[%emt 0:00:57]} Rc8 {[%emt 0:06:52]} 17. Ne5 {[%emt 0:02:20]} Nd7 {[%emt 0:13:37]} 18. Qh5 {[%emt 0:11:19]} f5 {[%emt 0:02:10]} 19. Bxe7 {[%emt 0:01:26]} Qxe7 {[%emt 0:00:12]} 20. Nd3 {[%emt 0:01:51]} Qd6 {[%emt 0:07:32]} 21. Qh4 {[%emt 0:02:20]} Be4 {[%emt 0:18:06]} 1/2-1/2

[Event "SVK Extraliga 2019-20"]
[Site "Slovakia"]
[Date "2020.09.05"]
[Round "10.6"]
[White "Briestensky, Rastislav"]
[Black "Varga, Lukas"]
[Result "1-0"]
[ECO "A46"]
[WhiteElo "2301"]
[BlackElo "2065"]
[Annotator "ChessBase"]
[PlyCount "79"]
[EventDate "2019.10.19"]
[EventType "team-tourn"]
[EventCountry "SVK"]
[SourceTitle "playchess.com"]
[Source "ChessBase"]
[SourceQuality "1"]
[WhiteTeam "Slovan"]
[BlackTeam "Kosice"]
[TimeControl "40/5400+30:1800+30"]

1. d4 {[%emt 0:00:00]} Nf6 {[%emt 0:00:00]} 2. Nf3 {[%emt 0:00:00]} c5 {[%emt 0:01:07]} 3. e3 {[%emt 0:00:43]} d5 {[%emt 0:01:26]} 4. Be2 {[%emt 0:00:44]} Nc6 {[%emt 0:04:29]} 5. O-O {[%emt 0:00:53]} Bg4 {[%emt 0:04:29]} 6. c3 {[%emt 0:06:00]} Bxf3 {[%emt 0:04:21]} 7. Bxf3 {[%emt 0:00:17]} e5 {[%emt 0:00:16]} 8. dxc5 {[%emt 0:05:03]} e4 {[%emt 0:11:32]} 9. Be2 {[%emt 0:00:05]} Bxc5 {[%emt 0:00:11]} 10. b4 {[%emt 0:03:32]} Bd6 {[%emt 0:02:58]} 11. Na3 {[%emt 0:06:55]} Be5 {[%emt 0:08:44]} 12. Bd2 {[%emt 0:04:38]} O-O {[%emt 0:02:54]} 13. Rc1 {[%emt 0:09:21]} Qd6 {[%emt 0:06:25]} 14. h3 {[%emt 0:08:44]} a5 {[%emt 0:01:13]} 15. Nb5 {[%emt 0:00:37]} Qe7 {[%emt 0:00:14]} 16. a3 {[%emt 0:03:48]} Nd7 {[%emt 0:04:20]} 17. Qb3 {[%emt 0:09:41]} Nb6 {[%emt 0:05:10]} 18. Rfd1 {[%emt 0:08:38]} Qe6 {[%emt 0:04:36]} 19. Nd4 {[%emt 0:11:38]} Qf6 {[%emt 0:02:13]} 20. Be1 {[%emt 0:03:14]} Rfc8 {[%emt 0:03:16]} 21. Bb5 {[%emt 0:05:25]} axb4 {[%emt 0:02:20]} 22. axb4 {[%emt 0:01:48]} Nc4 {[%emt 0:05:24]} 23. Nxc6 {[%emt 0:01:12]} Ra3 {[%emt 0:00:11]} 24. Qb1 {[%emt 0:00:17]} Rxc6 {[%emt 0:01:25]} 25. Bxc6 {[%emt 0:02:32]} Qxc6 {[%emt 0:00:17]} 26. Rc2 {[%emt 0:01:09]} g6 {[%emt 0:02:12]} 27. Ra2 {[%emt 0:00:11]} Bxc3 {[%emt 0:01:09]} 28. Rxa3 {[%emt 0:02:16]} Nxa3 {[%emt 0:00:10]} 29. Qb3 {[%emt 0:00:46]} Bxe1 {[%emt 0:01:01]} 30. Qxa3 {[%emt 0:01:02]} Bxf2+ {[%emt 0:04:10]} 31. Kxf2 {[%emt 0:00:04]} Qc2+ {[%emt 0:00:07]} 32. Ke1 {[%emt 0:00:03]} Qxg2 {[%emt 0:00:21]} 33. Rxd5 {[%emt 0:02:34]} Qg1+ {[%emt 0:00:49]} 34. Kd2 {[%emt 0:00:26]} Qf2+ {[%emt 0:01:55]} 35. Kc1 {[%emt 0:00:22]} Qf1+ {[%emt 0:00:51]} 36. Rd1 {[%emt 0:00:09]} Qxh3 {[%emt 0:00:15]} 37. Qc3 {[%emt 0:00:15]} f6 {[%emt 0:01:07]} 38. Qc4+ {[%emt 0:00:40]} Kg7 {[%emt 0:00:38]} 39. Qxe4 {[%emt 0:00:17]} h5 {[%emt 0:00:48]} 40. Qxb7+ {[%emt 0:00:25]} 1-0

[Event "SVK Extraliga 2019-20"]
[Site "Slovakia"]
[Date "2020.09.05"]
[Round "10.6"]
[White "Schwarz, Dusan"]
[Black "Haring, Filip"]
[Result "0-1"]
[ECO "A35"]
[WhiteElo "2297"]
[BlackElo "2333"]
[Annotator "ChessBase"]
[PlyCount "72"]
[EventDate "2019.10.19"]
[EventType "team-tourn"]
[EventCountry "SVK"]
[SourceTitle "playchess.com"]
[Source "ChessBase"]
[SourceQuality "1"]
[WhiteTeam "Modra"]
[BlackTeam "Liptovska"]
[TimeControl "40/5400+30:1800+30"]

1. Nf3 {[%emt 0:00:00]} Nf6 {[%emt 0:00:00]} 2. c4 {[%emt 0:00:00]} c5 {[%emt 0:00:16]} 3. Nc3 {[%emt 0:00:09]} Nc6 {[%emt 0:01:01]} 4. g3 {[%emt 0:01:48]} g6 {[%emt 0:00:11]} 5. Bg2 {[%emt 0:00:40]} d6 {[%emt 0:00:23]} 6. d4 {[%emt 0:01:09]} cxd4 {[%emt 0:00:33]} 7. Nxd4 {[%emt 0:00:10]} Bd7 {[%emt 0:00:22]} 8. O-O {[%emt 0:04:08]} Bg7 {[%emt 0:00:57]} 9. Nc2 {[%emt 0:03:53]} Qc8 {[%emt 0:02:44]} 10. Ne3 {[%emt 0:32:41]} Bh3 {[%emt 0:03:24]} 11. Ncd5 {[%emt 0:02:08]} h5 {[%emt 0:09:17]} 12. Nc7+ {[%emt 0:07:20]} Kf8 {[%emt 0:22:35]} 13. Nxa8 {[%emt 0:00:24]} h4 {[%emt 0:00:04]} 14. g4 {[%emt 0:09:41]} Bxg2 {[%emt 0:01:11]} 15. Kxg2 {[%emt 0:00:13]} Nxg4 {[%emt 0:01:08]} 16. h3 {[%emt 0:04:15]} Nf6 {[%emt 0:06:52]} 17. Nd5 {[%emt 0:05:11]} Qxa8 {[%emt 0:02:04]} 18. f3 {[%emt 0:03:18]} Qc8 {[%emt 0:10:37]} 19. Bd2 {[%emt 0:03:51]} Qe6 {[%emt 0:02:30]} 20. e4 {[%emt 0:00:44]} Rh5 {[%emt 0:03:52]} 21. Qc2 {[%emt 0:03:16]} Qe5 {[%emt 0:05:05]} 22. Be1 {[%emt 0:06:16]} Nd4 {[%emt 0:02:31]} 23. Qd3 {[%emt 0:00:48]} Ne6 {[%emt 0:03:44]} 24. Kh1 {[%emt 0:04:19]} Ng5 {[%emt 0:09:07]} 25. Nxf6 {[%emt 0:02:19]} Bxf6 {[%emt 0:00:50]} 26. Rd1 {[%emt 0:02:18]} Qe6 {[%emt 0:03:34]} 27. f4 {[%emt 0:00:46]} Nxe4 {[%emt 0:00:12]} 28. Kg2 {[%emt 0:01:07]} Bxb2 {[%emt 0:03:31]} 29. Rb1 {[%emt 0:00:46]} Nc5 {[%emt 0:01:49]} 30. Qf3 {[%emt 0:00:12]} Bf6 {[%emt 0:00:30]} 31. Bf2 {[%emt 0:00:35]} Qxc4 {[%emt 0:00:57]} 32. Bxc5 {[%emt 0:00:33]} Rxc5 {[%emt 0:01:14]} 33. Rxb7 {[%emt 0:00:14]} Qxa2+ {[%emt 0:00:14]} 34. Rf2 {[%emt 0:01:06]} Rc2 {[%emt 0:01:07]} 35. Rxa7 {[%emt 0:00:16]} Rxf2+ {[%emt 0:00:03]} 36. Qxf2 {[%emt 0:00:19]} Qxf2+ {[%emt 0:00:03]} 0-1